[Event "Late-Titled-Tuesday-Blitz-May-14-2024"]
[Site "Chess.com"]
[Date "2024.05.14"]
[Round "4"]
[White "crazycheesecake"]
[Black "MeesvanOsch"]
[Result "0-1"]
[WhiteElo "2143"]
[BlackElo "2354"]
[TimeControl "180+1"]
[EndTime "14:38:39 PDT"]
[Termination "MeesvanOsch won by checkmate"]

1. Nf3 {[%clk 0:02:50.9]} 1... Nf6 {[%clk 0:02:58.6]} 2. c4 {[%clk 0:02:50.6]}
2... b6 {[%clk 0:02:59.2]} 3. g3 {[%clk 0:02:49.2]} 3... Bb7 {[%clk 0:02:59]} 4.
Bg2 {[%clk 0:02:49.7]} 4... g6 {[%clk 0:02:59.9]} 5. O-O {[%clk 0:02:49]} 5...
Bg7 {[%clk 0:03:00.5]} 6. Nc3 {[%clk 0:02:48.7]} 6... O-O {[%clk 0:03:01.2]} 7.
Re1 {[%clk 0:02:48.8]} 7... Ne4 {[%clk 0:03:01.4]} 8. d4 {[%clk 0:02:30.2]} 8...
Nxc3 {[%clk 0:02:59.4]} 9. bxc3 {[%clk 0:02:30.8]} 9... d6 {[%clk 0:03:00.3]}
10. e4 {[%clk 0:02:30.3]} 10... Nc6 {[%clk 0:02:56.5]} 11. Qd3 {[%clk
0:02:22.3]} 11... e6 {[%clk 0:02:55.1]} 12. Bb2 {[%clk 0:02:20.7]} 12... Qe7
{[%clk 0:02:54.6]} 13. Rad1 {[%clk 0:02:18.8]} 13... Na5 {[%clk 0:02:54.7]} 14.
Nd2 {[%clk 0:01:35.1]} 14... Ba6 {[%clk 0:02:51.8]} 15. Ba3 {[%clk 0:01:23.6]}
15... c5 {[%clk 0:02:50.2]} 16. e5 {[%clk 0:01:17.9]} 16... Rac8 {[%clk
0:02:49.7]} 17. exd6 {[%clk 0:01:17.2]} 17... Qxd6 {[%clk 0:02:50.6]} 18. Ne4
{[%clk 0:01:15]} 18... Qe7 {[%clk 0:02:35.6]} 19. dxc5 {[%clk 0:01:09.5]} 19...
Nxc4 {[%clk 0:02:24.6]} 20. Nd6 {[%clk 0:00:55.5]} 20... Rcd8 {[%clk 0:01:40.2]}
21. cxb6 {[%clk 0:00:49.1]} 21... axb6 {[%clk 0:01:34.3]} 22. Nxc4 {[%clk
0:00:36]} 22... Rxd3 {[%clk 0:00:41]} 23. Bxe7 {[%clk 0:00:19.1]} 23... Rxd1
{[%clk 0:00:41.3]} 24. Rxd1 {[%clk 0:00:18.7]} 24... Re8 {[%clk 0:00:41.7]} 25.
Nxb6 {[%clk 0:00:17.4]} 25... Rxe7 {[%clk 0:00:41.8]} 26. Rd8+ {[%clk 0:00:18]}
26... Bf8 {[%clk 0:00:42]} 27. Nd7 {[%clk 0:00:18.7]} 27... Kg7 {[%clk
0:00:40.3]} 28. Nxf8 {[%clk 0:00:18.5]} 28... Rc7 {[%clk 0:00:38.7]} 29. Ra8
{[%clk 0:00:18.9]} 29... Bd3 {[%clk 0:00:35]} 30. a4 {[%clk 0:00:19.4]} 30...
Rxc3 {[%clk 0:00:34.9]} 31. a5 {[%clk 0:00:20.1]} 31... Rc1+ {[%clk 0:00:35]}
32. Bf1 {[%clk 0:00:20.8]} 32... Bxf1 {[%clk 0:00:35.2]} 33. h4 {[%clk
0:00:21.5]} 33... Be2+ {[%clk 0:00:32.9]} 34. Kh2 {[%clk 0:00:21.9]} 34... Bf3
{[%clk 0:00:33.4]} 35. Ra7 {[%clk 0:00:21]} 35... Rh1# {[%clk 0:00:33.1]} 0-1

[Event "Late-Titled-Tuesday-Blitz-May-14-2024"]
[Site "Chess.com"]
[Date "2024.05.14"]
[Round "4"]
[White "katharinareinecke"]
[Black "KatakuriDono"]
[Result "0-1"]
[WhiteElo "1890"]
[BlackElo "2299"]
[TimeControl "180+1"]
[EndTime "14:38:45 PDT"]
[Termination "KatakuriDono won by resignation"]

1. d4 {[%clk 0:03:00.9]} 1... Nf6 {[%clk 0:02:59.4]} 2. Nf3 {[%clk 0:03:00]}
2... d5 {[%clk 0:02:58.7]} 3. g3 {[%clk 0:02:56.9]} 3... g6 {[%clk 0:02:56.9]}
4. Bg2 {[%clk 0:02:56.6]} 4... Bg7 {[%clk 0:02:57.3]} 5. O-O {[%clk 0:02:56.7]}
5... O-O {[%clk 0:02:57.4]} 6. c4 {[%clk 0:02:56.1]} 6... Nc6 {[%clk 0:02:57.5]}
7. cxd5 {[%clk 0:02:53.1]} 7... Nxd5 {[%clk 0:02:57.5]} 8. e3 {[%clk 0:02:50.3]}
8... Nb6 {[%clk 0:02:48.6]} 9. Nh4 {[%clk 0:02:47.1]} 9... e5 {[%clk 0:02:42.7]}
10. d5 {[%clk 0:02:43.6]} 10... Ne7 {[%clk 0:02:42.6]} 11. e4 {[%clk 0:02:42.4]}
11... f5 {[%clk 0:02:41]} 12. Nc3 {[%clk 0:02:34.2]} 12... fxe4 {[%clk
0:02:36.1]} 13. Bxe4 {[%clk 0:02:33.7]} 13... Nf5 {[%clk 0:02:33.6]} 14. Nxf5
{[%clk 0:02:26.4]} 14... gxf5 {[%clk 0:02:33.9]} 15. Bg2 {[%clk 0:02:22.5]}
15... e4 {[%clk 0:02:34.2]} 16. Bf4 {[%clk 0:02:15.7]} 16... Bxc3 {[%clk
0:02:10]} 17. bxc3 {[%clk 0:02:13.5]} 17... Qxd5 {[%clk 0:02:10.1]} 18. Qh5
{[%clk 0:02:04.3]} 18... Qf7 {[%clk 0:01:57.2]} 19. Qg5+ {[%clk 0:01:59.9]}
19... Qg7 {[%clk 0:01:55]} 20. Qxg7+ {[%clk 0:01:54.8]} 20... Kxg7 {[%clk
0:01:54.8]} 21. Bxc7 {[%clk 0:01:55]} 21... Be6 {[%clk 0:01:54.9]} 22. a4 {[%clk
0:01:28.8]} 22... Nc4 {[%clk 0:01:48.1]} 23. Rfd1 {[%clk 0:01:10.1]} 23... Rac8
{[%clk 0:01:47.2]} 24. Bf4 {[%clk 0:01:06.6]} 24... Rfd8 {[%clk 0:01:42.4]} 25.
Bf1 {[%clk 0:00:55.7]} 25... b6 {[%clk 0:01:23.2]} 26. Bxc4 {[%clk 0:00:45.8]}
26... Bxc4 {[%clk 0:01:23.2]} 27. Be5+ {[%clk 0:00:42.1]} 27... Kg6 {[%clk
0:01:18.2]} 28. a5 {[%clk 0:00:38]} 28... b5 {[%clk 0:01:17.8]} 29. a6 {[%clk
0:00:32.5]} 29... Bd3 {[%clk 0:01:16.6]} 30. Bd4 {[%clk 0:00:29.6]} 30... Rd7
{[%clk 0:01:16.4]} 31. f3 {[%clk 0:00:22.5]} 31... b4 {[%clk 0:01:15.2]} 32.
fxe4 {[%clk 0:00:20.6]} 32... fxe4 {[%clk 0:01:14]} 33. Rac1 {[%clk 0:00:06.3]}
33... b3 {[%clk 0:01:12]} 34. Rxd3 {[%clk 0:00:02.3]} 34... exd3 {[%clk
0:01:11.2]} 35. Rb1 {[%clk 0:00:02.5]} 35... Rb8 {[%clk 0:01:06.5]} 36. Kf2
{[%clk 0:00:01.9]} 36... Re7 {[%clk 0:00:59.9]} 37. Rd1 {[%clk 0:00:01.2]} 37...
b2 {[%clk 0:00:59.2]} 38. Rxd3 {[%clk 0:00:01.6]} 38... b1=Q {[%clk 0:00:59.1]}
0-1

[Event "Late-Titled-Tuesday-Blitz-May-14-2024"]
[Site "Chess.com"]
[Date "2024.05.14"]
[Round "4"]
[White "noret"]
[Black "HajiyevKanan"]
[Result "1-0"]
[WhiteElo "2139"]
[BlackElo "2442"]
[TimeControl "180+1"]
[EndTime "14:38:47 PDT"]
[Termination "noret won by checkmate"]

1. e4 {[%clk 0:02:54.4]} 1... c6 {[%clk 0:02:58.7]} 2. d4 {[%clk 0:02:53]} 2...
d5 {[%clk 0:02:59.6]} 3. exd5 {[%clk 0:02:51.8]} 3... cxd5 {[%clk 0:03:00.5]} 4.
Bd3 {[%clk 0:02:51.7]} 4... Nc6 {[%clk 0:03:00.2]} 5. c3 {[%clk 0:02:51.6]} 5...
Qc7 {[%clk 0:03:00.5]} 6. h3 {[%clk 0:02:50.5]} 6... Nf6 {[%clk 0:03:00.9]} 7.
Nd2 {[%clk 0:02:32.7]} 7... g6 {[%clk 0:02:59.4]} 8. Ngf3 {[%clk 0:02:31.7]}
8... Bg7 {[%clk 0:03:00]} 9. O-O {[%clk 0:02:29.8]} 9... O-O {[%clk 0:03:00.7]}
10. Re1 {[%clk 0:02:29.1]} 10... Bf5 {[%clk 0:03:01.3]} 11. Bxf5 {[%clk
0:02:28.4]} 11... gxf5 {[%clk 0:03:02.2]} 12. Ne5 {[%clk 0:01:40.9]} 12... e6
{[%clk 0:03:01.3]} 13. Ndf3 {[%clk 0:01:31.3]} 13... Ne4 {[%clk 0:02:59.9]} 14.
Bf4 {[%clk 0:01:30.8]} 14... Nxe5 {[%clk 0:02:59.6]} 15. Nxe5 {[%clk 0:01:28.1]}
15... Qb6 {[%clk 0:02:59.5]} 16. Qe2 {[%clk 0:01:20]} 16... Rad8 {[%clk
0:02:57.8]} 17. a4 {[%clk 0:01:03.1]} 17... Rfe8 {[%clk 0:02:46]} 18. a5 {[%clk
0:01:01.1]} 18... Qb3 {[%clk 0:02:45.9]} 19. Ra3 {[%clk 0:00:59.3]} 19... Nxc3
{[%clk 0:02:35.7]} 20. Rxb3 {[%clk 0:00:57.2]} 20... Nxe2+ {[%clk 0:02:36.4]}
21. Rxe2 {[%clk 0:00:57.7]} 21... Re7 {[%clk 0:02:35.8]} 22. a6 {[%clk
0:00:54.4]} 22... Bxe5 {[%clk 0:02:31.5]} 23. Bxe5 {[%clk 0:00:52.6]} 23... bxa6
{[%clk 0:02:25.1]} 24. Bf6 {[%clk 0:00:52.8]} 24... Red7 {[%clk 0:02:21.5]} 25.
Bxd8 {[%clk 0:00:52.8]} 25... Rxd8 {[%clk 0:02:22.4]} 26. Rb7 {[%clk 0:00:47.6]}
26... Rd6 {[%clk 0:02:22.3]} 27. Rxa7 {[%clk 0:00:47.5]} 27... Rb6 {[%clk
0:02:22.9]} 28. Kh2 {[%clk 0:00:39.6]} 28... Rc6 {[%clk 0:02:23.2]} 29. Rd2
{[%clk 0:00:38.6]} 29... Kg7 {[%clk 0:02:23.6]} 30. Kg3 {[%clk 0:00:37.9]} 30...
Kf6 {[%clk 0:02:24.3]} 31. Kf4 {[%clk 0:00:37.8]} 31... h5 {[%clk 0:02:25]} 32.
f3 {[%clk 0:00:35.7]} 32... h4 {[%clk 0:02:24.1]} 33. Ra8 {[%clk 0:00:34.4]}
33... Kg7 {[%clk 0:02:22.4]} 34. Ke5 {[%clk 0:00:30]} 34... Kg6 {[%clk
0:02:16.3]} 35. Rg8+ {[%clk 0:00:27.3]} 35... Kh7 {[%clk 0:02:16.5]} 36. Ra8
{[%clk 0:00:22.1]} 36... Kg6 {[%clk 0:02:16.5]} 37. Kf4 {[%clk 0:00:21.1]} 37...
Kg7 {[%clk 0:02:10.1]} 38. g3 {[%clk 0:00:20.6]} 38... hxg3 {[%clk 0:02:10]} 39.
Kxg3 {[%clk 0:00:21.5]} 39... f6 {[%clk 0:02:09.5]} 40. Kf4 {[%clk 0:00:21.8]}
40... Kf7 {[%clk 0:02:06.9]} 41. h4 {[%clk 0:00:21.8]} 41... Rc4 {[%clk
0:02:06.1]} 42. Rxa6 {[%clk 0:00:19.9]} 42... e5+ {[%clk 0:02:05.4]} 43. Ke3
{[%clk 0:00:19.8]} 43... f4+ {[%clk 0:02:05.4]} 44. Kf2 {[%clk 0:00:19.6]} 44...
e4 {[%clk 0:02:04.2]} 45. fxe4 {[%clk 0:00:16]} 45... dxe4 {[%clk 0:02:05.1]}
46. Re2 {[%clk 0:00:13.8]} 46... f5 {[%clk 0:02:03.5]} 47. h5 {[%clk 0:00:12.8]}
47... f3 {[%clk 0:02:03.5]} 48. Rd2 {[%clk 0:00:12]} 48... f4 {[%clk 0:02:01.7]}
49. Ra3 {[%clk 0:00:10]} 49... e3+ {[%clk 0:02:00.6]} 50. Rxe3 {[%clk
0:00:10.2]} 50... fxe3+ {[%clk 0:02:01.5]} 51. Kxe3 {[%clk 0:00:10.7]} 51... Kf6
{[%clk 0:01:54]} 52. Kxf3 {[%clk 0:00:10.7]} 52... Kf5 {[%clk 0:01:54.4]} 53.
Ke3 {[%clk 0:00:09.7]} 53... Ra4 {[%clk 0:01:53.5]} 54. d5 {[%clk 0:00:06.2]}
54... Ra7 {[%clk 0:01:52.4]} 55. d6 {[%clk 0:00:06.4]} 55... Rd7 {[%clk
0:01:53.1]} 56. b4 {[%clk 0:00:04.7]} 56... Ke6 {[%clk 0:01:52]} 57. b5 {[%clk
0:00:04.3]} 57... Rd8 {[%clk 0:01:52.5]} 58. d7 {[%clk 0:00:03.7]} 58... Ke7
{[%clk 0:01:52.4]} 59. b6 {[%clk 0:00:03.6]} 59... Rxd7 {[%clk 0:01:52.5]} 60.
Rxd7+ {[%clk 0:00:03.3]} 60... Kxd7 {[%clk 0:01:53.4]} 61. h6 {[%clk 0:00:03.9]}
61... Kc6 {[%clk 0:01:54.3]} 62. h7 {[%clk 0:00:04.4]} 62... Kxb6 {[%clk
0:01:55.2]} 63. h8=Q {[%clk 0:00:05]} 63... Kc5 {[%clk 0:01:56.1]} 64. Qd4+
{[%clk 0:00:05.2]} 64... Kb5 {[%clk 0:01:56.7]} 65. Ke4 {[%clk 0:00:05.9]} 65...
Kc6 {[%clk 0:01:57.2]} 66. Qe5 {[%clk 0:00:06.1]} 66... Kb6 {[%clk 0:01:57.9]}
67. Qd5 {[%clk 0:00:06.6]} 67... Kc7 {[%clk 0:01:58.4]} 68. Kd4 {[%clk
0:00:07.5]} 68... Kb6 {[%clk 0:01:59.3]} 69. Kc4 {[%clk 0:00:08]} 69... Ka7
{[%clk 0:01:59.3]} 70. Qb5 {[%clk 0:00:07.4]} 70... Ka8 {[%clk 0:01:59.7]} 71.
Kd5 {[%clk 0:00:08.3]} 71... Ka7 {[%clk 0:02:00.6]} 72. Kc6 {[%clk 0:00:08.9]}
72... Ka8 {[%clk 0:02:01.2]} 73. Kc7 {[%clk 0:00:09.8]} 73... Ka7 {[%clk
0:02:01.6]} 74. Qa5# {[%clk 0:00:10]} 1-0

[Event "Late-Titled-Tuesday-Blitz-May-14-2024"]
[Site "Chess.com"]
[Date "2024.05.14"]
[Round "4"]
[White "emiliocordova"]
[Black "NMJeevanK"]
[Result "1-0"]
[WhiteElo "2907"]
[BlackElo "2723"]
[TimeControl "180+1"]
[EndTime "14:38:51 PDT"]
[Termination "emiliocordova won by checkmate"]

1. d4 {[%clk 0:03:00.9]} 1... d6 {[%clk 0:03:00.2]} 2. c4 {[%clk 0:03:00.3]}
2... g6 {[%clk 0:03:00.2]} 3. Nc3 {[%clk 0:03:00.7]} 3... Bg7 {[%clk 0:03:00.7]}
4. Nf3 {[%clk 0:03:01.1]} 4... Nc6 {[%clk 0:03:00.5]} 5. g3 {[%clk 0:03:01.3]}
5... Nf6 {[%clk 0:02:56.8]} 6. Bg2 {[%clk 0:03:01.5]} 6... O-O {[%clk
0:02:57.1]} 7. O-O {[%clk 0:03:01.8]} 7... e5 {[%clk 0:02:56.5]} 8. dxe5 {[%clk
0:02:57.7]} 8... Nxe5 {[%clk 0:02:48.8]} 9. b3 {[%clk 0:02:52.2]} 9... Nxf3+
{[%clk 0:02:43.1]} 10. Bxf3 {[%clk 0:02:53.1]} 10... Bh3 {[%clk 0:02:37.1]} 11.
Re1 {[%clk 0:02:47.6]} 11... Ng4 {[%clk 0:02:15]} 12. Bb2 {[%clk 0:02:45.1]}
12... Rb8 {[%clk 0:02:11]} 13. e3 {[%clk 0:02:43]} 13... Ne5 {[%clk 0:02:10.1]}
14. Bg2 {[%clk 0:02:39]} 14... Bxg2 {[%clk 0:02:08.9]} 15. Kxg2 {[%clk
0:02:39.9]} 15... h5 {[%clk 0:02:03.6]} 16. e4 {[%clk 0:02:38.6]} 16... Qd7
{[%clk 0:01:56.5]} 17. Nd5 {[%clk 0:02:35.1]} 17... h4 {[%clk 0:01:47.7]} 18.
Qe2 {[%clk 0:02:19.3]} 18... h3+ {[%clk 0:01:43.5]} 19. Kh1 {[%clk 0:02:15.1]}
19... Rbe8 {[%clk 0:01:35.3]} 20. Rad1 {[%clk 0:02:14]} 20... f5 {[%clk
0:01:23.9]} 21. f4 {[%clk 0:02:10.4]} 21... Ng4 {[%clk 0:01:22.3]} 22. e5 {[%clk
0:02:02]} 22... Qc6 {[%clk 0:01:08.1]} 23. e6 {[%clk 0:01:58.4]} 23... Bxb2
{[%clk 0:00:43.6]} 24. Qxb2 {[%clk 0:01:57.6]} 24... Qc5 {[%clk 0:00:42.7]} 25.
Rd2 {[%clk 0:01:52.3]} 25... c6 {[%clk 0:00:37.6]} 26. Nc3 {[%clk 0:01:39.8]}
26... a5 {[%clk 0:00:29.3]} 27. Na4 {[%clk 0:01:33]} 27... Qa7 {[%clk
0:00:28.5]} 28. c5 {[%clk 0:01:33.2]} 28... d5 {[%clk 0:00:24.9]} 29. Nb6 {[%clk
0:01:30.3]} 29... Rf6 {[%clk 0:00:21.4]} 30. Rde2 {[%clk 0:01:27.4]} 30... Qa6
{[%clk 0:00:07.9]} 31. Kg1 {[%clk 0:01:27.4]} 31... Qb5 {[%clk 0:00:06.9]} 32.
Qd4 {[%clk 0:01:26.9]} 32... Kh7 {[%clk 0:00:04.7]} 33. Nd7 {[%clk 0:01:23.6]}
33... Rff8 {[%clk 0:00:02.9]} 34. Nxf8+ {[%clk 0:01:22.8]} 34... Rxf8 {[%clk
0:00:03.8]} 35. e7 {[%clk 0:01:17.3]} 35... Re8 {[%clk 0:00:04.1]} 36. Re6
{[%clk 0:01:14.4]} 36... b6 {[%clk 0:00:03.4]} 37. cxb6 {[%clk 0:01:13.2]} 37...
c5 {[%clk 0:00:03.1]} 38. Qxd5 {[%clk 0:01:10.8]} 38... Qb4 {[%clk 0:00:03.8]}
39. R6e2 {[%clk 0:00:59.8]} 39... Qxb6 {[%clk 0:00:03.5]} 40. Qf7+ {[%clk
0:00:59.3]} 40... Kh6 {[%clk 0:00:03.3]} 41. Re6 {[%clk 0:00:55.6]} 41... Qb4
{[%clk 0:00:03.1]} 42. Qxg6# {[%clk 0:00:55.4]} 1-0

[Event "Late-Titled-Tuesday-Blitz-May-14-2024"]
[Site "Chess.com"]
[Date "2024.05.14"]
[Round "4"]
[White "mfschulz"]
[Black "maurovargas01"]
[Result "1-0"]
[WhiteElo "2303"]
[BlackElo "1937"]
[TimeControl "180+1"]
[EndTime "14:38:56 PDT"]
[Termination "mfschulz won by checkmate"]

1. d4 {[%clk 0:01:36.8]} 1... d5 {[%clk 0:02:57]} 2. Bg5 {[%clk 0:01:35.6]} 2...
h6 {[%clk 0:02:50.2]} 3. Bh4 {[%clk 0:01:34.8]} 3... f5 {[%clk 0:02:50.1]} 4. e4
{[%clk 0:01:32.8]} 4... g5 {[%clk 0:02:49.4]} 5. Qh5+ {[%clk 0:01:30.8]} 5...
Kd7 {[%clk 0:02:46.8]} 6. Bxg5 {[%clk 0:01:30.1]} 6... Qe8 {[%clk 0:02:43.5]} 7.
Qxe8+ {[%clk 0:01:24.5]} 7... Kxe8 {[%clk 0:02:43]} 8. Bf4 {[%clk 0:01:24.1]}
8... Nf6 {[%clk 0:02:41.5]} 9. exf5 {[%clk 0:01:22]} 9... Bxf5 {[%clk
0:02:40.1]} 10. Na3 {[%clk 0:01:15.8]} 10... c6 {[%clk 0:02:14.5]} 11. O-O-O
{[%clk 0:01:14.5]} 11... e6 {[%clk 0:02:14.3]} 12. Nb1 {[%clk 0:01:12.7]} 12...
Ne4 {[%clk 0:02:14.3]} 13. Be3 {[%clk 0:01:10.3]} 13... Bd6 {[%clk 0:02:13]} 14.
f3 {[%clk 0:01:10]} 14... Ng5 {[%clk 0:02:10.7]} 15. Bd3 {[%clk 0:01:09.6]}
15... Nd7 {[%clk 0:02:02.5]} 16. h4 {[%clk 0:01:09.2]} 16... Nf7 {[%clk
0:02:01]} 17. g4 {[%clk 0:01:08.5]} 17... Bxd3 {[%clk 0:01:54.5]} 18. Rxd3
{[%clk 0:01:08.6]} 18... Kd8 {[%clk 0:01:49.2]} 19. f4 {[%clk 0:01:08]} 19...
Kc7 {[%clk 0:01:47.5]} 20. Nf3 {[%clk 0:01:08]} 20... Rae8 {[%clk 0:01:46.8]}
21. Ne5 {[%clk 0:01:07.6]} 21... Nfxe5 {[%clk 0:01:43.8]} 22. dxe5 {[%clk
0:01:07.3]} 22... Be7 {[%clk 0:01:37.8]} 23. Nc3 {[%clk 0:01:05]} 23... Nc5
{[%clk 0:01:37.1]} 24. Bxc5 {[%clk 0:01:03.7]} 24... Bxc5 {[%clk 0:01:36.8]} 25.
Kd2 {[%clk 0:01:02.6]} 25... Rhg8 {[%clk 0:01:35.2]} 26. g5 {[%clk 0:01:00.9]}
26... h5 {[%clk 0:01:33.2]} 27. Ne2 {[%clk 0:00:59.8]} 27... Ref8 {[%clk
0:01:31.3]} 28. c3 {[%clk 0:00:59.3]} 28... Kd7 {[%clk 0:01:27.6]} 29. Rf3
{[%clk 0:00:58.8]} 29... Bb6 {[%clk 0:01:26.3]} 30. Ng3 {[%clk 0:00:57.3]} 30...
Rh8 {[%clk 0:01:17.4]} 31. f5 {[%clk 0:00:56.5]} 31... exf5 {[%clk 0:01:14]} 32.
Rxf5 {[%clk 0:00:55.6]} 32... Rxf5 {[%clk 0:01:12.8]} 33. Nxf5 {[%clk
0:00:55.7]} 33... Ke6 {[%clk 0:01:09.6]} 34. Nd4+ {[%clk 0:00:52.4]} 34... Kxe5
{[%clk 0:01:07.2]} 35. Re1+ {[%clk 0:00:52.3]} 35... Kd6 {[%clk 0:01:05.4]} 36.
Nf5+ {[%clk 0:00:51.4]} 36... Kd7 {[%clk 0:01:00.3]} 37. Re7+ {[%clk 0:00:51.2]}
37... Kd8 {[%clk 0:00:54.7]} 38. Rxb7 {[%clk 0:00:50.2]} 38... Kc8 {[%clk
0:00:47.5]} 39. Rf7 {[%clk 0:00:46.9]} 39... Re8 {[%clk 0:00:29]} 40. g6 {[%clk
0:00:45.9]} 40... Re4 {[%clk 0:00:25]} 41. Nd6+ {[%clk 0:00:45.7]} 41... Kd8
{[%clk 0:00:23.9]} 42. Nxe4 {[%clk 0:00:45.6]} 42... dxe4 {[%clk 0:00:24.2]} 43.
g7 {[%clk 0:00:45.8]} 43... Ke8 {[%clk 0:00:24.5]} 44. g8=Q# {[%clk 0:00:45.2]}
1-0

[Event "Late-Titled-Tuesday-Blitz-May-14-2024"]
[Site "Chess.com"]
[Date "2024.05.14"]
[Round "4"]
[White "slorovel"]
[Black "Arimin1329"]
[Result "1-0"]
[WhiteElo "2565"]
[BlackElo "2373"]
[TimeControl "180+1"]
[EndTime "14:38:57 PDT"]
[Termination "slorovel won by checkmate"]

1. e4 {[%clk 0:03:00.9]} 1... b6 {[%clk 0:03:00]} 2. d4 {[%clk 0:03:00.1]} 2...
Bb7 {[%clk 0:03:00.9]} 3. Bd3 {[%clk 0:03:00.5]} 3... c5 {[%clk 0:02:59.8]} 4.
c3 {[%clk 0:03:00.1]} 4... g6 {[%clk 0:02:56.6]} 5. Nf3 {[%clk 0:02:59.5]} 5...
Bg7 {[%clk 0:02:57.5]} 6. O-O {[%clk 0:02:59.1]} 6... e6 {[%clk 0:02:58.1]} 7.
Nbd2 {[%clk 0:02:56.4]} 7... Ne7 {[%clk 0:02:57.9]} 8. Qe2 {[%clk 0:02:56.2]}
8... cxd4 {[%clk 0:02:57.1]} 9. cxd4 {[%clk 0:02:56.1]} 9... O-O {[%clk
0:02:57.6]} 10. Rd1 {[%clk 0:02:55.7]} 10... d6 {[%clk 0:02:57.5]} 11. Nf1
{[%clk 0:02:55.6]} 11... Nbc6 {[%clk 0:02:55.3]} 12. Bb1 {[%clk 0:02:54.5]}
12... Rc8 {[%clk 0:02:54.5]} 13. Ng3 {[%clk 0:02:53.7]} 13... Nb4 {[%clk
0:02:48.6]} 14. a3 {[%clk 0:02:46.7]} 14... Ba6 {[%clk 0:02:47.7]} 15. Qd2
{[%clk 0:02:43.7]} 15... Nbc6 {[%clk 0:02:44.8]} 16. b4 {[%clk 0:02:43]} 16...
d5 {[%clk 0:02:40.1]} 17. e5 {[%clk 0:02:41.2]} 17... Bc4 {[%clk 0:02:35.5]} 18.
h4 {[%clk 0:02:39.8]} 18... a5 {[%clk 0:02:29.4]} 19. Qb2 {[%clk 0:02:35.7]}
19... axb4 {[%clk 0:02:26.1]} 20. axb4 {[%clk 0:02:35.1]} 20... b5 {[%clk
0:02:25.5]} 21. h5 {[%clk 0:02:34.5]} 21... Re8 {[%clk 0:02:13.8]} 22. Nh2
{[%clk 0:02:33.7]} 22... Qb6 {[%clk 0:02:06.4]} 23. Ng4 {[%clk 0:02:28.3]} 23...
Ra8 {[%clk 0:02:05.2]} 24. Rxa8 {[%clk 0:02:26.3]} 24... Rxa8 {[%clk 0:02:04.7]}
25. Bg5 {[%clk 0:02:24.9]} 25... Nf5 {[%clk 0:02:01.6]} 26. Nxf5 {[%clk
0:02:23.3]} 26... gxf5 {[%clk 0:01:56.1]} 27. Nf6+ {[%clk 0:02:23.4]} 27... Kh8
{[%clk 0:01:55]} 28. h6 {[%clk 0:02:22.9]} 28... Bf8 {[%clk 0:01:52.1]} 29. Nd7
{[%clk 0:02:17.2]} 29... Qa7 {[%clk 0:01:42.9]} 30. Nxf8 {[%clk 0:02:16.2]}
30... Rxf8 {[%clk 0:01:42.2]} 31. Bf6+ {[%clk 0:02:16.6]} 31... Kg8 {[%clk
0:01:42.2]} 32. Qd2 {[%clk 0:02:15.8]} 32... Ne7 {[%clk 0:01:39.5]} 33. Qg5+
{[%clk 0:01:46.1]} 33... Ng6 {[%clk 0:01:39.3]} 34. Bd8 {[%clk 0:01:44]} 34...
Qa4 {[%clk 0:01:12.8]} 35. Rc1 {[%clk 0:00:52.1]} 35... f6 {[%clk 0:01:04.5]}
36. Bxf6 {[%clk 0:00:51]} 36... Qxb4 {[%clk 0:00:56.2]} 37. g4 {[%clk
0:00:50.6]} 37... Qb2 {[%clk 0:00:28.3]} 38. gxf5 {[%clk 0:00:47.8]} 38... exf5
{[%clk 0:00:24.3]} 39. Bxf5 {[%clk 0:00:48.7]} 39... Rxf6 {[%clk 0:00:22.5]} 40.
exf6 {[%clk 0:00:44.5]} 40... Kf7 {[%clk 0:00:22.1]} 41. Re1 {[%clk 0:00:41.6]}
41... Qxd4 {[%clk 0:00:20.5]} 42. Re7+ {[%clk 0:00:37.7]} 42... Nxe7 {[%clk
0:00:20.1]} 43. Qg7+ {[%clk 0:00:37.6]} 43... Ke8 {[%clk 0:00:20.4]} 44. Qxe7#
{[%clk 0:00:38.5]} 1-0

[Event "Late-Titled-Tuesday-Blitz-May-14-2024"]
[Site "Chess.com"]
[Date "2024.05.14"]
[Round "4"]
[White "KebabJangles"]
[Black "ritanovikova"]
[Result "1-0"]
[WhiteElo "2364"]
[BlackElo "2156"]
[TimeControl "180+1"]
[EndTime "14:38:58 PDT"]
[Termination "KebabJangles won by resignation"]

1. d4 {[%clk 0:03:00.9]} 1... e5 {[%clk 0:02:58.1]} 2. dxe5 {[%clk 0:02:54.2]}
2... Nc6 {[%clk 0:02:57.6]} 3. Nf3 {[%clk 0:02:24]} 3... Qe7 {[%clk 0:02:56.2]}
4. Bf4 {[%clk 0:02:23.2]} 4... Qb4+ {[%clk 0:02:54.9]} 5. Bd2 {[%clk 0:02:21.6]}
5... Qxb2 {[%clk 0:02:54.5]} 6. Nc3 {[%clk 0:02:21]} 6... Nb4 {[%clk 0:02:51.7]}
7. Nd4 {[%clk 0:02:13.7]} 7... Bc5 {[%clk 0:02:38.6]} 8. Rb1 {[%clk 0:02:12.6]}
8... Qa3 {[%clk 0:02:38.1]} 9. Ncb5 {[%clk 0:02:00.4]} 9... Qxa2 {[%clk
0:02:33.1]} 10. Bxb4 {[%clk 0:01:48.8]} 10... Bxb4+ {[%clk 0:02:27]} 11. Rxb4
{[%clk 0:01:49.7]} 11... Qa5 {[%clk 0:02:25.7]} 12. c3 {[%clk 0:01:42.5]} 12...
c5 {[%clk 0:02:19.2]} 13. Nd6+ {[%clk 0:01:39.5]} 13... Kf8 {[%clk 0:02:18.8]}
14. Nb3 {[%clk 0:01:32.7]} 14... Qc7 {[%clk 0:01:37.4]} 15. Rg4 {[%clk 0:01:24]}
15... Nh6 {[%clk 0:01:31.5]} 16. Rg3 {[%clk 0:01:22.3]} 16... a5 {[%clk
0:01:23]} 17. e3 {[%clk 0:01:18.2]} 17... a4 {[%clk 0:01:22.8]} 18. Na1 {[%clk
0:01:18.3]} 18... g6 {[%clk 0:01:13.4]} 19. Bc4 {[%clk 0:01:16.7]} 19... Qa5
{[%clk 0:00:52.4]} 20. O-O {[%clk 0:01:14.9]} 20... Qxc3 {[%clk 0:00:51.7]} 21.
Qd5 {[%clk 0:01:14.3]} 21... b5 {[%clk 0:00:39.8]} 22. Qxa8 {[%clk 0:01:10]}
22... Kg7 {[%clk 0:00:36.5]} 23. Bxb5 {[%clk 0:01:03.8]} 23... Qxe5 {[%clk
0:00:30.6]} 24. Nxc8 {[%clk 0:01:00.2]} 24... Nf5 {[%clk 0:00:26.9]} 25. Rf3
{[%clk 0:00:58.6]} 25... Ne7 {[%clk 0:00:25.8]} 26. Bxd7 {[%clk 0:00:57.8]}
26... Qc7 {[%clk 0:00:21.7]} 27. Bh3 {[%clk 0:00:52.8]} 27... f5 {[%clk
0:00:21.2]} 28. Qxa4 {[%clk 0:00:51.5]} 28... Rxc8 {[%clk 0:00:19.4]} 29. Nc2
{[%clk 0:00:50.9]} 29... Nc6 {[%clk 0:00:14.3]} 30. Qa1+ {[%clk 0:00:50]} 30...
Kh6 {[%clk 0:00:13.7]} 31. g4 {[%clk 0:00:47.5]} 31... Ne5 {[%clk 0:00:13.5]}
32. Rg3 {[%clk 0:00:47]} 32... f4 {[%clk 0:00:09.6]} 33. exf4 {[%clk 0:00:45.6]}
33... Nc4 {[%clk 0:00:07.9]} 34. g5+ {[%clk 0:00:45.7]} 34... Kh5 {[%clk
0:00:07]} 35. Qd1+ {[%clk 0:00:45]} 1-0